bitfinex/quotes_ETHUSD_20240709
["timestamp","ask_amount","ask_price","bid_price","bid_amount"]
[1720493780230,2.4005,3059.9,3059.8,0.55]
[1720493780434,2.67641363,3059.9,3059.5,3.26843]
[1720493780640,2.67641363,3059.9,3059.6,3.26837]
[1720493781066,2.67641363,3059.9,3059.8,3.26818]
[1720493781067,2.4005,3059.9,3059.8,3.26818]
[1720493781379,2.4005,3059.9,3059.8,6.53636]
[1720493781737,0.555,3060.4,3059.9,3.26808]
[1720493781938,0.555,3060.4,3059.9,7.08616]
[1720493781939,2.9579,3060.4,3059.9,7.08616]
[1720493782565,2.9579,3060.4,3059.9,0.55]
[1720493782877,2.9579,3060.4,3059.9,3.81808]
[1720493783480,2.9579,3060.4,3059.9,7.08616]
[1720493784793,2.9579,3060.4,3059.9,3.81808]
[1720493785508,2.9579,3060.4,3059.1,3.0]
[1720493785700,0.5978353,3060.0,3059.1,3.0]
[1720493785906,0.5978353,3060.0,3059.7,3.26827]
[1720493786412,0.5978353,3060.0,3059.9,6.53616]
[1720493786694,1e-08,3060.0,3059.9,9.80424]
[1720493786889,1e-08,3060.0,3059.9,10.35424]
[1720493787086,1e-08,3060.0,3059.9,7.08616]
[1720493789897,1e-08,3060.0,3059.9,3.81808]
[1720493790495,1e-08,3060.0,3059.9,7.08616]
[1720493790686,1e-08,3060.0,3059.9,3.81808]
[1720493790881,1e-08,3060.0,3059.9,7.15151651]
[1720493791209,0.555,3060.4,3060.3,9.80295]
[1720493791374,0.555,3060.4,3060.3,13.35295]
[1720493792540,0.555,3060.4,3060.3,10.0853]
[1720493792896,0.555,3060.4,3060.3,3.81765]
[1720493793093,2.264,3060.3,3060.2,3.26776]
[1720493793295,2.264,3060.3,3060.2,6.53552]
[1720493794309,0.555,3060.4,3060.3,6.5353]
[1720493794519,0.555,3060.4,3060.3,7.0853]
[1720493795999,1.53763849,3060.5,3060.4,6.53508]
[1720493796213,1.53763849,3060.5,3060.4,7.08508]
[1720493796407,1.53763849,3060.5,3060.4,0.55]
[1720493796916,1.53763849,3060.5,3060.4,7.08508]
[1720493798900,0.5283585,3060.5,3060.4,15.90616]
[1720493799103,0.555,3060.9,3060.5,3.26743]
[1720493799432,0.555,3060.9,3060.8,9.80133]
[1720493799601,0.555,3060.9,3060.8,16.06844]
[1720493799802,0.555,3060.9,3060.8,16.61844]
[1720493800434,9.99,3061.3,3060.9,13.06804]
[1720493800609,9.99,3061.3,3060.9,16.61804]
[1720493803314,9.99,3061.3,3060.9,13.35103]
[1720493804562,12.4861,3061.3,3060.9,9.53402]
[1720493805925,12.4861,3061.3,3060.9,10.08402]
[1720493806339,12.4861,3061.3,3060.9,7.08402]
[1720493806535,12.4861,3061.3,3060.9,6.53402]
[1720493806746,12.4861,3061.3,3061.0,6.5338]
[1720493807429,12.4861,3061.3,3061.0,9.8007]
[1720493807430,9.99,3061.3,3061.0,9.8007]
[1720493808146,9.99,3061.3,3061.0,10.3507]
[1720493809151,9.99,3061.3,3061.0,7.0838]
[1720493810719,9.99,3061.3,3061.2,16.33345]
[1720493810720,2.4103,3061.3,3061.2,16.33345]
[1720493810944,1.11,3061.9,3061.8,6.5321]
[1720493811134,1.11,3061.9,3061.8,13.34815]
[1720493812219,1e-05,3061.9,3061.8,13.34815]
[1720493812462,1e-05,3061.9,3061.8,16.6142]
[1720493812619,1.665,3062.1,3062.0,9.79749]
[1720493812926,1.665,3062.1,3062.0,13.34749]
[1720493814063,1.665,3062.1,3062.0,10.08166]
[1720493814259,2.22,3062.1,3062.0,10.08166]
[1720493814460,2.22,3062.1,3062.0,13.34749]
[1720493815276,2.22,3062.1,3062.0,16.61332]
[1720493816470,2.3163,3063.7,3063.6,3.26413]
[1720493816960,1.11,3064.1,3063.0,0.0652822]
[1720493817168,1.11,3064.1,3064.0,3.2637]
[1720493817461,1.11,3064.1,3064.0,3.8137]
[1720493818362,1.11,3064.1,3064.0,7.0774]
[1720493819942,1.11,3064.1,3064.0,3.8137]
[1720493820148,1.11,3064.1,3064.0,0.55]
[1720493820467,1.2765,3064.1,3063.6,3.2641]
[1720493820629,1.11,3064.1,3063.9,3.26381]
[1720493820826,1.11,3064.1,3063.6,3.26409]
[1720493821030,2.346,3064.0,3063.1,7.44]
[1720493821335,2.346,3064.0,3062.2,14.57639216]
[1720493821336,2.346,3064.0,3063.0,3.26475]
[1720493821535,2.346,3064.0,3062.8,3.26498]
[1720493821536,2.4598,3063.8,3063.2,3.26453]
[1720493821731,2.4598,3063.8,3063.0,3.26477]
[1720493821962,2.4598,3063.8,3062.5,3.26523]
[1720493822145,2.4598,3063.8,3063.1,3.26462]
[1720493822347,2.4598,3063.8,3063.2,3.26447]
[1720493822545,0.24598,3063.7,3063.0,3.26477]
[1720493822743,0.24598,3063.7,3062.2,10.70556]
[1720493822744,2.4511,3063.6,3062.5,3.2653]
[1720493822943,2.4511,3063.6,3062.6,3.26515]
[1720493823435,2.4511,3063.6,3062.5,3.2653]
[1720493823652,2.4331,3063.5,3062.5,3.2653]
[1720493823876,2.4331,3063.3,3062.5,3.2653]
[1720493824245,2.4331,3063.3,3062.3,3.26551]
[1720493824444,0.555,3063.7,3062.5,5.55129]
[1720493824646,0.555,3063.7,3063.6,3.26413]
[1720493825162,0.555,3063.7,3063.6,6.52826]
[1720493825546,0.555,3063.7,3063.6,7.07826]
[1720493825874,1.11,3063.7,3063.6,7.07826]
[1720493826852,2.4969,3064.3,3064.0,3.2637]
[1720493827147,1.52619,3064.1,3063.6,0.55]
[1720493827342,1.52619,3064.1,3063.4,3.26425]
[1720493827538,1.52619,3064.1,3063.5,0.55]
[1720493827761,1.52619,3064.1,3063.5,3.81422]
[1720493827961,1.52619,3064.1,3063.7,3.26402]
[1720493828160,1.52619,3064.1,3063.5,3.81422]
[1720493828364,1.52619,3064.1,3063.3,3.26442]
[1720493828365,2.3102,3063.9,3063.3,3.26442]
[1720493828574,2.3102,3063.9,3062.9,3.26485]
[1720493828775,2.3102,3063.9,3062.0,2.286]
[1720493828776,2.3102,3063.9,3063.0,3.26471]
[1720493829164,2.3102,3063.9,3062.8,3.26498]
[1720493829367,2.3102,3063.9,3062.8,3.26497]
[1720493829567,2.2708,3063.7,3062.8,3.26497]
[1720493830078,2.2708,3063.7,3062.3,3.26549]
[1720493830446,2.4773,3063.4,3061.3,7.44]
[1720493830656,2.4773,3063.4,3061.0,2.286]
[1720493830657,2.4773,3063.2,3061.0,2.286]
[1720493831006,2.4773,3063.2,3061.8,3.26605]
[1720493831144,2.4542,3063.1,3062.2,3.26561]
[1720493831544,2.4542,3063.1,3062.8,3.26497]
[1720493831869,2.4542,3063.1,3062.6,3.26512]
[1720493832173,2.69962,3063.1,3061.9,3.26593]
[1720493832375,2.69962,3063.1,3062.0,3.26582]
[1720493832573,2.69962,3063.1,3062.1,3.26572]
[1720493832775,2.3767,3062.9,3061.6,3.26625]
[1720493833077,2.3767,3063.9,3062.8,3.26498]
[1720493833264,2.3767,3063.9,3063.7,3.26394]
[1720493833666,2.3767,3063.9,3063.8,3.26392]
[1720493834549,2.3767,3063.9,3063.8,7.07784]
[1720493834777,2.3767,3063.9,3063.8,3.26392]
[1720493835155,2.3767,3063.9,3063.8,6.52784]
[1720493835354,2.3767,3063.9,3063.8,7.07784]
[1720493835860,1.69508624,3063.9,3063.8,7.07784]
[1720493837566,3.33,3064.1,3064.0,3.2637]
[1720493838148,3.33,3064.1,3064.0,6.5274]
[1720493838391,3.33,3064.1,3064.0,7.0774]
[1720493840891,3.688044,3064.1,3064.0,7.0774]
[1720493841104,3.688044,3064.1,3064.0,10.3411]
[1720493843090,3.688044,3064.1,3064.0,7.0774]
[1720493844186,3.688044,3064.1,3064.0,6.5274]
[1720493845506,3.688044,3064.1,3064.0,7.0774]
[1720493846167,3.688044,3064.1,3064.0,10.3411]
[1720493846367,3.688044,3064.1,3064.0,7.0774]
[1720493846790,2.47642471,3064.1,3064.0,7.0774]
[1720493848199,2.47642471,3064.1,3064.0,3.2637]
[1720493848867,2.47642471,3064.1,3063.8,3.26388]
[1720493849285,2.4468,3064.0,3063.7,3.26395]
[1720493850007,2.4468,3064.0,3063.8,3.26385]
[1720493850211,2.4468,3064.0,3063.9,6.52762]
[1720493850766,2.4468,3064.0,3063.9,3.26381]
[1720493850979,2.99462247,3064.0,3063.7,3.26399]
[1720493851468,2.99462247,3064.0,3063.6,3.26413]
[1720493851887,2.99462247,3064.0,3063.7,3.26395]
[1720493852095,2.4468,3064.0,3063.7,3.26395]
[1720493852505,2.4468,3064.0,3063.4,3.2643]
[1720493852506,2.4468,3064.0,3063.5,3.26416]
[1720493852709,2.4468,3064.0,3062.4,0.40511455]
[1720493852710,2.4468,3064.0,3063.7,3.26399]
[1720493853263,1.11,3065.7,3065.6,6.524]
[1720493853533,1.11,3065.7,3065.6,7.074]
[1720493853732,1.11,3065.7,3065.6,10.336]
[1720493853941,1.11,3065.7,3065.6,13.336]
[1720493854152,1.11,3065.7,3065.6,10.074]
[1720493854291,1.11,3065.7,3065.6,13.336]
[1720493854792,1.11,3065.7,3065.6,7.074]
[1720493857899,1.11,3065.7,3065.6,13.598]
[1720493858824,1e-05,3065.8,3065.7,16.30945]
[1720493859014,1e-05,3065.8,3065.7,16.85945]
[1720493859615,1e-05,3065.8,3065.7,19.85945]
[1720493859801,1e-05,3065.8,3065.7,20.42432724]
[1720493860244,1e-05,3065.8,3065.7,10.90054724]
[1720493860404,1e-05,3065.8,3065.7,10.33567]
[1720493860641,1e-05,3065.8,3065.7,16.59756]
[1720493861177,1.11,3066.9,3066.5,13.04416]
[1720493861395,1.11,3066.9,3066.5,6.81543724]
[1720493861595,0.555,3067.1,3066.6,0.61959721]
[1720493861896,0.555,3067.1,3067.0,9.78153]
[1720493862274,0.6651655,3067.4,3067.3,9.78057]
[1720493862275,5.5e-06,3067.4,3067.3,9.78057]
[1720493862649,5.5e-06,3067.4,3067.3,10.33057]
[1720493862854,5.5e-06,3067.4,3067.3,7.07038]
[1720493863386,1.11,3068.9,3068.8,9.7758]
[1720493863548,0.1101655,3070.3,3069.5,9.77355]
[1720493863877,0.1101655,3070.3,3069.5,6.5157]
[1720493864090,0.1101655,3070.3,3069.5,3.25785]
[1720493864368,0.1101655,3070.3,3069.4,3.25794]
[1720493864556,0.1101655,3070.3,3069.5,0.06515758]
[1720493864763,0.1101655,3070.3,3069.5,0.55]
[1720493865078,0.1101655,3070.3,3069.1,3.25818]
[1720493865232,0.1101655,3070.3,3067.8,3.8462]
[1720493865233,0.1101655,3070.3,3069.2,0.06515121]
[1720493865597,0.1101655,3070.3,3069.4,6.51589]
[1720493865736,0.1101655,3070.3,3069.5,9.83869073]
[1720493865737,6.45e-06,3069.6,3069.5,9.83869073]
[1720493865934,0.1101655,3070.3,3069.9,9.77229]
[1720493865935,8.37134,3070.0,3069.9,9.77229]
[1720493866251,1.8567,3070.0,3069.9,12.77229]
[1720493866569,1.8567,3070.0,3069.9,13.32229]
[1720493866794,0.64762381,3070.0,3069.9,13.32229]
[1720493867000,0.64762381,3070.0,3069.9,3.80743]
[1720493867169,0.64762381,3070.0,3069.9,6.51486]
[1720493867361,0.555,3071.3,3070.6,6.51338]
[1720493867557,2.3529,3073.0,3071.6,3.25563]
[1720493867762,2.3529,3073.0,3071.6,6.51126]
[1720493868198,2.3529,3073.0,3071.6,6.57635779]
[1720493868369,2.3529,3073.0,3071.6,3.06509779]
[1720493868572,0.23529,3072.9,3072.3,3.25484]
[1720493868771,0.23529,3072.9,3072.6,3.25456]
[1720493868978,2.3529,3073.0,3072.7,0.55]
[1720493869170,0.34054335,3073.0,3072.3,3.25484]
[1720493869374,0.34054335,3073.0,3072.7,3.25446]
[1720493869569,0.34054335,3073.0,3072.8,0.55]
[1720493869962,0.34054335,3073.0,3072.1,3.25502]
[1720493870162,0.34054335,3073.0,3072.2,0.55]
[1720493870411,0.34054335,3073.0,3072.1,0.55]
[1720493870579,0.34054335,3073.0,3072.1,0.545]
[1720493871178,2.3393,3072.9,3071.5,3.25567]
[1720493871387,0.26798434,3072.8,3071.5,3.25567]
[1720493871589,0.26798434,3072.8,3071.8,3.25541]
[1720493871886,0.03072915,3072.7,3071.7,3.25551]
[1720493872068,0.29431261,3072.7,3071.8,3.25538]
[1720493872266,0.29431261,3072.7,3071.7,3.25551]
[1720493872267,0.29431261,3072.7,3072.0,3.2551]
[1720493872490,0.29431261,3072.7,3072.1,3.25507]
[1720493872797,0.29431261,3072.7,3071.7,3.25544]
[1720493873099,0.29431261,3072.7,3071.8,3.87049544]
[1720493873302,0.29431261,3072.7,3071.8,3.8054]
[1720493873503,0.29431261,3072.7,3072.1,3.2551]
[1720493873667,0.29431261,3072.7,3071.9,0.06509546]
[1720493873870,0.29431261,3072.7,3072.0,0.55]
[1720493874365,0.29431261,3072.7,3071.9,0.55]
[1720493874567,3.2546,3072.6,3071.2,3.25601]
[1720493874794,0.35489126,3072.5,3071.0,3.25626]
[1720493874999,0.35489126,3072.5,3070.5,3.3]
[1720493875000,2.2718,3072.2,3071.2,3.25595]
[1720493875400,0.02967886,3072.1,3071.1,3.25615]
[1720493875564,0.02967886,3072.1,3070.9,3.25636]
[1720493875762,0.55565289,3072.0,3071.0,3.25626]
[1720493876268,0.02923877,3071.9,3071.0,3.25626]
[1720493876488,0.02923877,3071.9,3071.1,3.25615]
[1720493876822,0.02923877,3071.9,3071.0,3.25626]
[1720493877323,0.38401017,3071.8,3070.7,3.25656]
[1720493877471,0.02923877,3071.9,3070.7,3.25656]
[1720493878105,0.02923877,3071.9,3071.0,3.25626]
[1720493878300,3.28454877,3071.9,3071.1,0.55]
[1720493878607,2.3396,3071.6,3070.5,3.2567]
[1720493878907,0.0292153,3071.5,3070.5,3.2567]
[1720493879088,3.25637,3070.9,3069.9,3.25739]
[1720493879290,3.25637,3070.9,3069.6,3.25766]
[1720493879291,2.3702731,3070.8,3069.6,3.25766]
[1720493879477,2.3702731,3070.8,3069.7,0.06514403]
[1720493879678,0.56266431,3070.7,3069.8,3.25744]
[1720493879880,0.56266431,3070.7,3069.7,0.06514403]
[1720493879881,2.3396,3070.8,3069.6,3.25766]
[1720493880202,2.3396,3070.8,3069.8,3.25749]
[1720493880403,0.02888043,3070.7,3069.3,3.25806]
[1720493880605,0.02888043,3070.7,3068.7,8.745801]
[1720493880606,3.02888043,3070.7,3069.0,3.25832]
[1720493880776,2.76268404,3070.6,3069.0,3.25832]
[1720493881278,2.496,3070.4,3068.5,3.25889]
[1720493881780,2.496,3070.4,3068.7,3.25867]
[1720493881988,2.496,3070.2,3068.5,3.25889]
[1720493882188,2.496,3070.1,3068.3,3.25911]
[1720493882397,2.496,3070.1,3068.2,3.25922]
[1720493882398,2.496,3070.0,3068.2,3.25922]
[1720493882567,2.496,3069.8,3068.0,1.30616]
[1720493882768,2.496,3069.8,3067.9,3.25954]
[1720493883074,2.496,3069.7,3067.7,3.25974]
[1720493883304,2.496,3069.5,3067.7,3.25968]
[1720493883808,2.496,3069.2,3067.4,10.70007]
[1720493883968,2.496,3069.2,3066.1,1.5]
[1720493883969,2.496,3068.9,3067.3,3.26018]
[1720493884172,2.496,3068.8,3067.3,3.26018]
[1720493884420,2.496,3068.8,3066.6,1.37194479]
[1720493884421,2.496,3068.6,3067.1,3.26039]
[1720493884570,5.496,3068.6,3067.1,3.26039]
[1720493884971,2.496,3068.6,3067.1,3.26039]
[1720493885224,3.449,3068.6,3066.9,3.2606]
[1720493885370,2.496,3068.4,3067.0,3.32570472]
[1720493885574,5.496,3068.4,3067.1,3.26039]
[1720493885773,0.5496,3068.3,3067.2,0.06520003]
[1720493885974,9.37e-06,3068.8,3068.7,6.5174]
[1720493886202,2.4864,3070.9,3069.6,3.25765]
[1720493886507,2.4864,3070.9,3070.5,3.25678]
[1720493886820,2.4864,3070.9,3070.6,0.06512743]
[1720493886974,0.34111068,3072.3,3071.2,3.25603]
[1720493887178,0.34111068,3072.3,3069.7,0.06512121]
[1720493887179,0.34111068,3072.3,3071.1,3.25616]
[1720493887373,1.6101655,3073.3,3071.2,0.55]
[1720493887588,3.449,3073.2,3071.2,0.55]
[1720493887787,1.6101655,3073.3,3071.2,3.25596]
[1720493887788,3.449,3073.0,3071.2,3.25596]
[1720493888085,3.449,3073.0,3071.3,0.06511493]
[1720493888283,3.449,3073.0,3071.4,0.55]
[1720493888508,3.449,3073.0,3071.5,3.25572]
[1720493889182,0.50591655,3073.1,3071.6,3.25553]
[1720493889408,0.1101655,3073.3,3071.8,3.25533]
[1720493889618,0.34062105,3072.9,3071.8,3.25533]
[1720493889801,0.34062105,3072.9,3072.0,3.2551]
[1720493890001,2.3586,3072.8,3072.0,3.2551]
[1720493890234,2.3586,3072.8,3072.4,3.25477]
[1720493890712,2.3586,3072.8,3072.2,3.25498]
[1720493890911,2.3586,3072.8,3071.4,0.55]
[1720493891132,2.3586,3072.8,3071.2,3.25604]
[1720493891298,0.23586,3072.7,3071.4,3.2558]
[1720493891497,0.23586,3072.7,3070.3,3.257]
[1720493891695,0.23586,3072.7,3071.4,3.25581]
[1720493891899,0.259446,3072.6,3071.4,3.25581]
[1720493892097,0.259446,3072.6,3070.7,3.25658]
[1720493892098,2.3012,3072.5,3070.7,3.25658]
[1720493892298,2.3012,3072.5,3071.0,3.25617]
[1720493892494,2.3012,3072.5,3069.7,3.0361]
[1720493892495,2.3012,3072.3,3070.9,3.25637]
[1720493892750,5.3012,3072.3,3070.7,3.25658]
[1720493893049,2.3012,3072.2,3070.5,3.25677]
[1720493893235,5.85692646,3072.2,3070.9,3.2563]
[1720493893733,2.3012,3072.2,3070.3,1.27482319]
[1720493893900,2.3012,3072.2,3072.1,3.2551]
[1720493894099,2.3012,3072.2,3072.1,3.2501]
[1720493894299,2.3012,3072.2,3072.0,3.25517]
[1720493894532,2.3012,3072.2,3071.9,3.25529]
[1720493894730,2.3012,3072.2,3072.1,3.2551]
[1720493894903,2.4211,3073.2,3072.2,3.2549]
[1720493895103,0.25312655,3073.1,3072.1,0.55]
[1720493895336,3.25312655,3073.1,3071.9,3.25531]
[1720493895501,3.25312655,3073.1,3071.7,3.2555]
[1720493895707,0.56742266,3073.0,3071.8,0.55]
[1720493895922,0.56742266,3073.0,3071.9,3.25528]
[1720493896240,2.4211,3073.2,3072.8,3.25428]
[1720493896401,2.4211,3073.2,3072.7,3.25446]
[1720493896854,2.4211,3073.2,3072.2,3.25497]
[1720493897060,0.25312655,3073.1,3072.0,0.09258108]
[1720493897211,0.1101655,3073.3,3073.2,3.25393]
[1720493897411,0.1101655,3073.3,3073.2,7.05786]
[1720493898230,0.1101655,3073.3,3073.2,3.80393]
[1720493898632,0.1101655,3073.3,3073.1,3.25404]
[1720493898832,0.1101655,3073.3,3072.0,0.09258108]
[1720493898833,0.1101655,3073.3,3072.4,0.06507792]
[1720493899139,0.1101655,3073.3,3072.7,3.25445]
[1720493899342,0.1101655,3073.3,3072.8,3.25434]
[1720493899719,0.1101655,3073.3,3073.2,6.50786]
[1720493899915,0.1101655,3073.3,3073.2,3.25393]
[1720493900111,0.1101655,3073.3,3073.2,6.50786]
[1720493900315,0.1101655,3073.3,3073.2,7.12292347]
[1720493901122,1.11,3074.0,3073.2,0.61506347]
[1720493901441,1.11,3074.0,3073.7,3.25338]
[1720493901645,1.11,3074.0,3073.9,3.25319]
[1720493902019,1.11,3074.0,3073.9,3.80319]
[1720493902214,1.11,3074.0,3073.9,3.25319]
[1720493902410,1.11,3074.0,3073.9,6.50638]
[1720493902620,1.11,3074.0,3073.9,7.05638]
[1720493903550,1.11,3074.0,3073.9,10.30957]
[1720493904236,1.11,3074.0,3073.9,13.56276]
[1720493904480,0.555,3075.0,3074.4,3.25266]
[1720493904670,0.555,3075.0,3073.9,0.55]
[1720493904870,0.555,3075.0,3074.1,3.25288]
[1720493905072,0.555,3075.0,3074.0,0.09252085]
[1720493905271,0.555,3075.0,3074.2,3.25286]
[1720493905472,0.555,3075.0,3074.3,3.25272]
[1720493906061,0.555,3075.0,3074.0,0.09252085]
[1720493906062,0.555,3075.0,3074.0,3.34555085]
[1720493906261,0.555,3075.0,3074.2,3.25281]
[1720493906487,0.555,3075.0,3074.0,3.34555085]
[1720493906488,0.555,3075.0,3074.1,3.25297]
[1720493906784,0.555,3075.0,3074.0,0.09252085]
[1720493906988,2.365,3074.9,3074.0,0.09252085]
[1720493907184,0.292,3074.8,3074.0,0.09252085]
[1720493907389,0.35236042,3077.4,3074.0,0.09252085]
[1720493907551,0.35236042,3077.4,3077.3,3.2496]
[1720493907751,0.35236042,3077.4,3075.5,2.385]
[1720493907752,0.35236042,3077.4,3076.9,3.24996]
[1720493907993,0.35236042,3077.4,3077.0,0.55]
[1720493908297,0.35236042,3077.4,3076.1,1.302758]
[1720493908473,0.35236042,3077.4,3076.9,3.25]
[1720493908848,0.35236042,3077.4,3077.2,3.24967]
[1720493909276,0.35236042,3077.4,3076.4,0.06498873]
[1720493909493,0.35236042,3077.4,3076.9,3.24994]
[1720493909753,0.35236042,3077.4,3077.0,3.24991]
[1720493909951,0.35236042,3077.4,3076.6,0.06499293]
[1720493910148,0.35236042,3077.4,3076.9,3.25001]
[1720493910582,0.35236042,3077.4,3076.5,0.55]
[1720493910769,0.35236042,3077.4,3076.9,3.25002]
[1720493911091,0.35236042,3077.4,3077.0,3.24991]
[1720493911276,0.35236042,3077.4,3076.6,0.09244266]
[1720493911277,2.25,3077.3,3076.6,0.09244266]
[1720493911584,0.26023604,3077.2,3076.6,0.09244266]
[1720493911966,3.26023604,3077.2,3076.6,0.09244266]
[1720493912954,3.26023604,3077.2,3076.2,3.25075]
[1720493913154,3.26023604,3077.2,3076.1,0.0650118]
[1720493913387,3.26023604,3077.2,3076.0,3.25097]
[1720493913554,0.5510236,3077.1,3076.0,3.25097]
[1720493913884,0.5510236,3077.1,3076.1,3.25085]
[1720493914088,0.5510236,3077.1,3075.5,1.69621875]
[1720493914263,0.5510236,3077.1,3075.7,3.25127]
[1720493914585,2.4901,3076.9,3075.6,0.09247272]
[1720493914954,5.4901,3076.9,3075.6,0.09247272]
[1720493915264,8.9391,3076.9,3075.6,0.09247272]
[1720493915573,0.9320226,3076.8,3075.6,0.09247272]
[1720493915889,0.9320226,3076.8,3075.6,0.15749445]
[1720493916064,2.4901,3076.9,3076.1,3.25086]
[1720493916390,2.4901,3076.9,3076.4,3.25052]
[1720493916750,2.4901,3076.9,3076.0,3.25093]
[1720493916970,2.4901,3076.9,3075.9,3.25107]
[1720493917171,0.24901,3076.8,3075.7,3.25127]
[1720493917779,0.24901,3076.8,3076.0,3.25096]
[1720493918086,0.24901,3076.8,3076.1,3.25085]
[1720493918299,0.273911,3076.7,3075.7,3.80126]
[1720493918469,0.273911,3076.7,3075.8,3.25108]
[1720493918669,0.273911,3076.7,3075.7,3.80126]
[1720493918910,0.356342,3077.2,3075.7,3.80126]
[1720493918911,0.356342,3077.2,3076.3,3.25055]
[1720493919090,0.356342,3077.2,3075.7,0.55]
[1720493919091,0.356342,3077.2,3077.1,6.49962]
[1720493919488,0.356342,3077.2,3077.1,7.11460087]
[1720493919682,0.35236042,3077.4,3077.3,3.2496]
[1720493919881,0.35236042,3077.4,3077.3,10.36377889]
[1720493920306,0.35236042,3077.4,3077.3,10.2988]
[1720493920980,0.35236042,3077.4,3077.3,7.0492]
[1720493922830,0.35236042,3077.4,3077.3,3.2496]
[1720493922974,0.35236042,3077.4,3077.3,10.2988]
[1720493923604,0.35236042,3077.4,3077.3,7.0492]
[1720493924409,0.35236042,3077.4,3077.3,10.2988]
[1720493924706,0.35236042,3077.4,3077.3,7.0492]
[1720493924912,0.35236042,3077.4,3077.3,3.7996]
[1720493925109,0.35236042,3077.4,3077.3,3.2496]
[1720493925513,0.35236042,3077.4,3077.3,6.4992]
[1720493926201,2.4334828,3078.7,3077.3,3.24957]
[1720493926377,0.24334828,3078.6,3077.3,3.24957]
[1720493926685,0.24334828,3078.6,3076.7,3.25021]
[1720493926887,0.24334828,3078.6,3075.9,3.25106]
[1720493926888,2.2621,3078.5,3076.3,0.06499075]
[1720493927094,2.2621,3078.4,3077.0,3.24991]
[1720493927315,5.96164483,3078.4,3076.0,3.25087]
[1720493927481,2.2621,3078.2,3076.6,3.25032]
[1720493927685,2.2621,3078.2,3076.5,3.25043]
[1720493928379,2.2621,3078.2,3076.1,0.09245769]
[1720493928380,2.494,3078.1,3076.4,3.25055]
[1720493928597,2.494,3078.0,3076.2,3.25067]
[1720493929318,2.494,3077.9,3076.1,3.34330769]
[1720493929502,2.83947265,3077.9,3076.1,3.34330769]
[1720493930220,3.449,3077.8,3076.1,0.09245769]
[1720493930377,2.494,3078.6,3077.6,3.24925]
[1720493930590,2.494,3078.6,3078.5,3.24833]
[1720493930887,2.494,3078.6,3078.4,0.06496185]
[1720493931082,2.494,3078.6,3078.1,0.06496186]
[1720493931316,2.494,3078.6,3078.1,3.24873]
[1720493931476,2.494,3078.6,3078.2,0.61496366]
[1720493931681,2.494,3078.6,3078.3,0.06496366]
[1720493932116,2.494,3078.6,3078.2,0.55]
[1720493932419,0.34014163,3079.8,3078.6,3.24822]
[1720493932795,0.34014163,3079.8,3078.6,3.31317664]
[1720493933006,0.34014163,3079.8,3078.6,3.24822]
[1720493933900,0.34014163,3079.8,3078.4,3.24843]
[1720493933901,2.2854,3078.9,3078.4,3.24843]
[1720493934289,0.36349108,3078.7,3078.3,0.09239161]
[1720493935206,2.3262,3078.6,3077.2,3.24967]
[1720493935408,2.3262,3078.6,3076.0,4.46061]
[1720493935409,2.3262,3078.6,3076.5,3.31537566]
[1720493935812,2.3262,3078.6,3077.3,3.24959]
[1720493936008,2.3262,3078.4,3076.8,3.25011]
[1720493936207,2.3262,3078.3,3076.5,3.25042]
[1720493936418,2.3262,3078.1,3076.5,3.25042]
[1720493936620,2.3262,3078.0,3076.5,3.25042]
[1720493936840,3.0,3078.1,3076.3,3.25062]
[1720493936841,2.3262,3077.8,3076.3,3.25062]
[1720493937139,2.3262,3077.8,3076.4,0.06500054]
[1720493937140,5.3262,3077.8,3076.4,0.06500054]
[1720493937289,5.3262,3077.8,3076.4,3.25054]
[1720493937290,2.3262,3077.8,3076.4,3.25054]
[1720493937485,0.23262,3077.7,3076.5,3.31543051]
[1720493937685,2.3262,3077.8,3076.5,3.31541051]
[1720493937931,2.3262,3077.8,3076.7,3.2502]
[1720493938145,2.3262,3077.8,3076.8,0.06499289]
[1720493938436,2.3262,3080.2,3077.2,3.24964]
[1720493938722,1e-08,3078.7,3078.6,9.74466]
[1720493938924,2.3262,3080.2,3078.6,3.24822]
[1720493939096,2.3262,3080.2,3078.9,3.2479]
[1720493939304,2.55882,3080.2,3079.0,0.55]
[1720493939502,2.55882,3080.2,3079.0,3.79779]
[1720493939708,2.55882,3080.2,3079.1,3.24769]
[1720493939908,2.55882,3080.2,3079.0,0.55]
[1720493940109,2.55882,3080.2,3079.1,3.24768]
[1720493940391,0.255882,3080.1,3078.9,3.2479]
[1720493940705,0.255882,3080.1,3078.8,0.55]
[1720493940889,2.3862,3080.0,3078.4,3.68458249]
[1720493941091,2.3862,3080.0,3079.0,3.24779]
[1720493941284,2.3862,3080.0,3078.4,0.43616249]
[1720493941285,2.3862,3080.0,3079.3,3.24746]
[1720493941499,2.3862,3080.0,3079.6,3.24713]
[1720493941711,2.3862,3080.0,3079.2,0.06493401]
[1720493941948,2.62482,3080.0,3079.2,3.2475]
[1720493942250,2.62482,3080.0,3078.8,3.24796]
[1720493942424,0.262482,3079.9,3078.8,3.24796]
[1720493942748,0.262482,3079.9,3078.9,0.06495105]
[1720493942954,0.262482,3079.9,3078.7,3.31307107]
[1720493943245,0.262482,3079.9,3078.4,3.68459249]
[1720493943246,0.262482,3079.9,3078.4,0.43616249]
[1720493943417,2.4101,3079.7,3078.4,0.43616249]
[1720493943836,5.4101,3079.7,3078.4,0.43616249]
[1720493944033,5.8591,3079.6,3078.4,0.43616249]
[1720493944232,2.425,3079.4,3078.4,0.43616249]